[Event "Titled Tuesday Blitz January 10 Late 2023"]
[White "Almedina Ortiz, Edgardo J."]
[Black "Delaere, Jeroen"]
[WhiteFideId "3100197"]
[BlackFideId "204129"]
[WhiteElo "2156"]
[BlackElo "2104"]
[Result "1-0"]
[Round "09"]
[TimeControl "180+2"]
[Date "2023.01.10"]
[WhiteClock "0:01:03"]
[BlackClock "0:00:35"]

1. d4 {[%clk 0:00:00]}  Nf6 {[%clk 0:00:00]} 2. Bf4 {[%clk 0:02:58]}  d6 {[%clk 0:02:58]} 3. Nc3 {[%clk 0:02:57]}  Nbd7 {[%clk 0:02:55]} 4. e4 {[%clk 0:02:55]}  e5 {[%clk 0:02:53]} 5. Be3 {[%clk 0:02:50]}  c6 {[%clk 0:02:50]} 6. Nf3 {[%clk 0:02:49]}  Be7 {[%clk 0:02:47]} 7. a4 {[%clk 0:02:41]}  O-O {[%clk 0:02:45]} 8. h3 {[%clk 0:02:36]}  Re8 {[%clk 0:02:43]} 9. Bc4 {[%clk 0:02:34]}  h6 {[%clk 0:02:38]} 10. O-O {[%clk 0:02:28]}  Bf8 {[%clk 0:02:27]} 11. Re1 {[%clk 0:02:19]}  Nb6 {[%clk 0:02:25]} 12. Bb3 {[%clk 0:02:09]}  a5 {[%clk 0:02:20]} 13. dxe5 {[%clk 0:02:08]}  Nfd7 {[%clk 0:02:06]} 14. exd6 {[%clk 0:02:02]}  Qf6 {[%clk 0:01:52]} 15. e5 {[%clk 0:01:59]}  Nxe5 {[%clk 0:01:40]} 16. Nxe5 {[%clk 0:01:55]}  Rxe5 {[%clk 0:01:31]} 17. Bxb6 {[%clk 0:01:53]}  Bxd6 {[%clk 0:01:23]} 18. Ne4 {[%clk 0:01:49]}  Rxe4 {[%clk 0:01:20]} 19. Rxe4 {[%clk 0:01:39]}  Qg6 {[%clk 0:01:15]} 20. Re8+ {[%clk 0:01:40]}  Kh7 {[%clk 0:01:05]} 21. Qf3 {[%clk 0:01:35]}  Bxh3 {[%clk 0:01:01]} 22. Rxa8 {[%clk 0:01:29]}  Bg4 {[%clk 0:00:44]} 23. Qxf7 {[%clk 0:01:15]}  Qg5 {[%clk 0:00:41]} 24. Rh8+ {[%clk 0:01:09]}  Kxh8 {[%clk 0:00:35]} 25. Qg8# {[%clk 0:01:03]} 1-0


[Site "https://www.chess.com"]

[Event "Titled Tuesday Blitz January 10 Late 2023"]
[White "Andreikin, Dmitry"]
[Black "Nakamura, Hikaru"]
[WhiteFideId "4158814"]
[BlackFideId "2016192"]
[WhiteElo "2729"]
[BlackElo "2775"]
[Result "1-0"]
[Round "10"]
[TimeControl "180+2"]
[Date "2023.01.10"]
[WhiteClock "0:00:27"]
[BlackClock "0:00:16"]

1. Nf3 {[%clk 0:00:00]}  Nf6 {[%clk 0:00:00]} 2. c4 {[%clk 0:02:59]}  Nc6 {[%clk 0:02:59]} 3. d4 {[%clk 0:02:59]}  e6 {[%clk 0:02:59]} 4. g3 {[%clk 0:02:57]}  g6 {[%clk 0:02:59]} 5. Bg2 {[%clk 0:02:56]}  Bg7 {[%clk 0:03:00]} 6. O-O {[%clk 0:02:56]}  O-O {[%clk 0:03:00]} 7. b3 {[%clk 0:02:56]}  d5 {[%clk 0:03:00]} 8. Nbd2 {[%clk 0:02:55]}  Ne4 {[%clk 0:02:59]} 9. Bb2 {[%clk 0:02:55]}  Nxd2 {[%clk 0:02:59]} 10. Qxd2 {[%clk 0:02:55]}  b6 {[%clk 0:02:51]} 11. Rac1 {[%clk 0:02:54]}  Bb7 {[%clk 0:02:51]} 12. cxd5 {[%clk 0:02:46]}  exd5 {[%clk 0:02:50]} 13. Rc2 {[%clk 0:02:44]}  Ne7 {[%clk 0:02:51]} 14. Rfc1 {[%clk 0:02:44]}  c6 {[%clk 0:02:50]} 15. Ne5 {[%clk 0:02:44]}  Qd6 {[%clk 0:02:50]} 16. Qf4 {[%clk 0:02:41]}  Rad8 {[%clk 0:02:38]} 17. Nd3 {[%clk 0:02:35]}  Qe6 {[%clk 0:02:36]} 18. Ba3 {[%clk 0:02:31]}  Rfe8 {[%clk 0:02:31]} 19. e3 {[%clk 0:02:27]}  h6 {[%clk 0:02:31]} 20. h4 {[%clk 0:02:25]}  Kh7 {[%clk 0:02:15]} 21. Kh2 {[%clk 0:02:04]}  h5 {[%clk 0:01:59]} 22. Bh3 {[%clk 0:02:00]}  f5 {[%clk 0:01:51]} 23. Bxe7 {[%clk 0:01:56]}  Rxe7 {[%clk 0:01:52]} 24. Qf3 {[%clk 0:01:48]}  Rd6 {[%clk 0:01:50]} 25. Nf4 {[%clk 0:01:48]}  Qf7 {[%clk 0:01:46]} 26. b4 {[%clk 0:01:47]}  Rd8 {[%clk 0:01:45]} 27. Bf1 {[%clk 0:01:43]}  Rd6 {[%clk 0:01:39]} 28. Bd3 {[%clk 0:01:41]}  Bf8 {[%clk 0:01:31]} 29. Qe2 {[%clk 0:01:41]}  Bg7 {[%clk 0:01:21]} 30. Qf3 {[%clk 0:01:33]}  Kg8 {[%clk 0:01:21]} 31. a4 {[%clk 0:01:29]}  Kh7 {[%clk 0:01:13]} 32. Nh3 {[%clk 0:01:24]}  Qe8 {[%clk 0:01:12]} 33. Qf4 {[%clk 0:01:23]}  Qd8 {[%clk 0:01:04]} 34. Ng5+ {[%clk 0:01:21]}  Kg8 {[%clk 0:01:00]} 35. b5 {[%clk 0:01:18]}  c5 {[%clk 0:00:59]} 36. dxc5 {[%clk 0:01:17]}  bxc5 {[%clk 0:00:51]} 37. Rxc5 {[%clk 0:01:17]}  Be5 {[%clk 0:00:50]} 38. Qb4 {[%clk 0:01:17]}  d4 {[%clk 0:00:51]} 39. e4 {[%clk 0:01:13]}  f4 {[%clk 0:00:52]} 40. Qc4+ {[%clk 0:00:56]}  Bd5 {[%clk 0:00:42]} 41. Rxd5 {[%clk 0:00:48]}  Rxd5 {[%clk 0:00:19]} 42. Qxd5+ {[%clk 0:00:47]}  Qxd5 {[%clk 0:00:20]} 43. exd5 {[%clk 0:00:46]}  fxg3+ {[%clk 0:00:20]} 44. fxg3 {[%clk 0:00:46]}  Kg7 {[%clk 0:00:21]} 45. Ne6+ {[%clk 0:00:46]}  Kh6 {[%clk 0:00:21]} 46. Kg2 {[%clk 0:00:44]}  Rd7 {[%clk 0:00:20]} 47. Be4 {[%clk 0:00:43]}  d3 {[%clk 0:00:20]} 48. Rd1 {[%clk 0:00:42]}  a6 {[%clk 0:00:20]} 49. bxa6 {[%clk 0:00:40]}  Rd6 {[%clk 0:00:20]} 50. Bxd3 {[%clk 0:00:38]}  Rxd5 {[%clk 0:00:19]} 51. Be2 {[%clk 0:00:29]}  Ra5 {[%clk 0:00:18]} 52. Bb5 {[%clk 0:00:27]}  Kh7 {[%clk 0:00:17]} 53. Nc5 {[%clk 0:00:27]}  Bb8 {[%clk 0:00:16]} 54. Nb7 {[%clk 0:00:27]} 1-0


[Site "https://www.chess.com"]

[Event "Titled Tuesday Blitz January 10 Late 2023"]
[White "Paravyan, David"]
[Black "Naroditsky, Daniel"]
[WhiteFideId "4194985"]
[BlackFideId "2026961"]
[WhiteElo "2601"]
[BlackElo "2618"]
[Result "0-1"]
[Round "10"]
[TimeControl "180+2"]
[Date "2023.01.10"]
[WhiteClock "0:00:02"]
[BlackClock "0:00:31"]

1. e4 {[%clk 0:00:00]}  c6 {[%clk 0:00:00]} 2. d4 {[%clk 0:03:00]}  d5 {[%clk 0:02:54]} 3. e5 {[%clk 0:03:00]}  c5 {[%clk 0:02:54]} 4. Nf3 {[%clk 0:03:01]}  cxd4 {[%clk 0:02:54]} 5. Nxd4 {[%clk 0:03:01]}  Nc6 {[%clk 0:02:54]} 6. Nxc6 {[%clk 0:03:02]}  bxc6 {[%clk 0:02:53]} 7. Bd3 {[%clk 0:03:03]}  e6 {[%clk 0:02:54]} 8. O-O {[%clk 0:03:03]}  Ne7 {[%clk 0:02:51]} 9. Nd2 {[%clk 0:03:03]}  Ng6 {[%clk 0:02:46]} 10. Nf3 {[%clk 0:03:03]}  Be7 {[%clk 0:02:44]} 11. Re1 {[%clk 0:03:03]}  a5 {[%clk 0:02:33]} 12. g3 {[%clk 0:03:01]}  Ba6 {[%clk 0:02:31]} 13. Bxa6 {[%clk 0:02:57]}  Rxa6 {[%clk 0:02:24]} 14. h4 {[%clk 0:02:55]}  h6 {[%clk 0:02:25]} 15. Qd3 {[%clk 0:02:56]}  Qa8 {[%clk 0:02:14]} 16. Nd4 {[%clk 0:02:45]}  Nf8 {[%clk 0:02:09]} 17. c4 {[%clk 0:02:40]}  Nd7 {[%clk 0:02:02]} 18. Bf4 {[%clk 0:02:19]}  O-O {[%clk 0:01:55]} 19. Rac1 {[%clk 0:02:01]}  Qb7 {[%clk 0:01:50]} 20. Rc2 {[%clk 0:02:01]}  Nc5 {[%clk 0:01:36]} 21. Qf3 {[%clk 0:01:56]}  Rd8 {[%clk 0:01:19]} 22. Rec1 {[%clk 0:01:53]}  a4 {[%clk 0:01:20]} 23. Kg2 {[%clk 0:01:22]}  Rb6 {[%clk 0:01:20]} 24. Qg4 {[%clk 0:01:04]}  Kh8 {[%clk 0:01:17]} 25. Qe2 {[%clk 0:00:37]}  dxc4 {[%clk 0:01:14]} 26. Qxc4 {[%clk 0:00:35]}  Rb4 {[%clk 0:01:07]} 27. Qe2 {[%clk 0:00:31]}  Rdxd4 {[%clk 0:01:07]} 28. Be3 {[%clk 0:00:17]}  Nd3 {[%clk 0:00:52]} 29. Rd1 {[%clk 0:00:09]}  c5+ {[%clk 0:00:49]} 30. Kh3 {[%clk 0:00:05]}  Rd5 {[%clk 0:00:48]} 31. Rxd3 {[%clk 0:00:02]}  Rxd3 {[%clk 0:00:30]} 32. Qxd3 {[%clk 0:00:02]}  Qh1# {[%clk 0:00:31]} 0-1


[Site "https://www.chess.com"]

[Event "Titled Tuesday Blitz January 10 Late 2023"]
[White "Duda, Jan-Krzysztof"]
[Black "Dubov, Daniil"]
[WhiteFideId "1170546"]
[BlackFideId "24126055"]
[WhiteElo "2724"]
[BlackElo "2708"]
[Result "1-0"]
[Round "10"]
[TimeControl "180+2"]
[Date "2023.01.10"]
[WhiteClock "0:00:03"]
[BlackClock "0:00:02"]

1. d4 {[%clk 0:00:00]}  Nf6 {[%clk 0:00:00]} 2. Bg5 {[%clk 0:03:00]}  d5 {[%clk 0:02:59]} 3. Bxf6 {[%clk 0:02:59]}  gxf6 {[%clk 0:02:58]} 4. c4 {[%clk 0:02:58]}  c5 {[%clk 0:02:56]} 5. cxd5 {[%clk 0:02:58]}  Qxd5 {[%clk 0:02:54]} 6. Nf3 {[%clk 0:02:57]}  cxd4 {[%clk 0:02:49]} 7. Nc3 {[%clk 0:02:58]}  Qa5 {[%clk 0:02:49]} 8. Nxd4 {[%clk 0:02:58]}  Nc6 {[%clk 0:02:48]} 9. Nb3 {[%clk 0:02:59]}  Qe5 {[%clk 0:02:41]} 10. g3 {[%clk 0:02:57]}  Bg7 {[%clk 0:02:36]} 11. Bg2 {[%clk 0:02:48]}  O-O {[%clk 0:02:35]} 12. O-O {[%clk 0:02:48]}  Rd8 {[%clk 0:02:36]} 13. Qc1 {[%clk 0:02:48]}  Be6 {[%clk 0:02:36]} 14. f4 {[%clk 0:02:41]}  Qc7 {[%clk 0:02:31]} 15. Nc5 {[%clk 0:02:24]}  Bc4 {[%clk 0:02:30]} 16. b3 {[%clk 0:02:24]}  Na5 {[%clk 0:02:16]} 17. N5a4 {[%clk 0:02:09]}  Bxb3 {[%clk 0:01:45]} 18. axb3 {[%clk 0:01:19]}  Nxb3 {[%clk 0:01:03]} 19. Nd5 {[%clk 0:01:10]}  Qxc1 {[%clk 0:01:04]} 20. Raxc1 {[%clk 0:00:50]}  Nxc1 {[%clk 0:01:01]} 21. Rxc1 {[%clk 0:00:48]}  e6 {[%clk 0:01:01]} 22. Ndc3 {[%clk 0:00:45]}  Rab8 {[%clk 0:00:59]} 23. Rb1 {[%clk 0:00:22]}  f5 {[%clk 0:00:50]} 24. Rxb7 {[%clk 0:00:22]}  Rxb7 {[%clk 0:00:44]} 25. Bxb7 {[%clk 0:00:18]}  Rd4 {[%clk 0:00:42]} 26. Ba6 {[%clk 0:00:19]}  Rd6 {[%clk 0:00:36]} 27. Bd3 {[%clk 0:00:10]}  Rc6 {[%clk 0:00:31]} 28. Na2 {[%clk 0:00:09]}  a5 {[%clk 0:00:26]} 29. Kf2 {[%clk 0:00:06]}  Bd4+ {[%clk 0:00:23]} 30. Kf3 {[%clk 0:00:06]}  h6 {[%clk 0:00:23]} 31. h3 {[%clk 0:00:06]}  Kf8 {[%clk 0:00:21]} 32. g4 {[%clk 0:00:06]}  fxg4+ {[%clk 0:00:21]} 33. hxg4 {[%clk 0:00:06]}  Ke7 {[%clk 0:00:21]} 34. e3 {[%clk 0:00:07]}  Bf6 {[%clk 0:00:21]} 35. Ke2 {[%clk 0:00:07]}  Rc7 {[%clk 0:00:20]} 36. Kd2 {[%clk 0:00:07]}  Rb7 {[%clk 0:00:18]} 37. Nc1 {[%clk 0:00:07]}  Rb4 {[%clk 0:00:17]} 38. Bc2 {[%clk 0:00:07]}  Rb8 {[%clk 0:00:11]} 39. Nd3 {[%clk 0:00:07]}  Rg8 {[%clk 0:00:11]} 40. Bd1 {[%clk 0:00:07]}  Rb8 {[%clk 0:00:11]} 41. Nac5 {[%clk 0:00:07]}  Ra8 {[%clk 0:00:10]} 42. Ke2 {[%clk 0:00:06]}  Rb8 {[%clk 0:00:07]} 43. Bc2 {[%clk 0:00:06]}  Rc8 {[%clk 0:00:07]} 44. Kf3 {[%clk 0:00:05]}  Rb8 {[%clk 0:00:06]} 45. Ne4 {[%clk 0:00:05]}  Bg7 {[%clk 0:00:06]} 46. Nef2 {[%clk 0:00:03]}  Rc8 {[%clk 0:00:05]} 47. Bd1 {[%clk 0:00:02]}  Rc4 {[%clk 0:00:05]} 48. Bb3 {[%clk 0:00:02]}  Rc3 {[%clk 0:00:04]} 49. Ba4 {[%clk 0:00:02]}  Ra3 {[%clk 0:00:04]} 50. Bb5 {[%clk 0:00:02]}  a4 {[%clk 0:00:04]} 51. Nc5 {[%clk 0:00:03]}  Bd4 {[%clk 0:00:03]} 52. Nfd3 {[%clk 0:00:03]}  Bxc5 {[%clk 0:00:03]} 53. Nxc5 {[%clk 0:00:02]}  Kd6 {[%clk 0:00:02]} 54. Nxa4 {[%clk 0:00:03]}  Rb3 {[%clk 0:00:02]} 55. Be2 {[%clk 0:00:03]}  Kd5 {[%clk 0:00:02]} 56. Kf2 {[%clk 0:00:03]}  Kd6 {[%clk 0:00:02]} 57. e4 {[%clk 0:00:03]}  e5 {[%clk 0:00:01]} 58. f5 {[%clk 0:00:02]}  Ra3 {[%clk 0:00:01]} 59. Nb6 {[%clk 0:00:03]}  Kc5 {[%clk 0:00:01]} 60. Nc4 {[%clk 0:00:02]}  Ra7 {[%clk 0:00:02]} 61. Nxe5 {[%clk 0:00:03]}  Kd4 {[%clk 0:00:02]} 62. Nc6+ {[%clk 0:00:03]} 1-0


[Site "https://www.chess.com"]

[Event "Titled Tuesday Blitz January 10 Late 2023"]
[White "Moroni, Luca Jr"]
[Black "Sevian, Samuel"]
[WhiteFideId "865834"]
[BlackFideId "2040506"]
[WhiteElo "2535"]
[BlackElo "2684"]
[Result "0-1"]
[Round "10"]
[TimeControl "180+2"]
[Date "2023.01.10"]
[WhiteClock "0:00:02"]
[BlackClock "0:00:37"]

1. d4 {[%clk 0:00:00]}  Nf6 {[%clk 0:00:00]} 2. Nf3 {[%clk 0:03:00]}  d5 {[%clk 0:02:56]} 3. c3 {[%clk 0:03:00]}  Nbd7 {[%clk 0:02:55]} 4. h3 {[%clk 0:03:00]}  c5 {[%clk 0:02:50]} 5. Bf4 {[%clk 0:02:47]}  Qb6 {[%clk 0:02:38]} 6. Qb3 {[%clk 0:02:46]}  e6 {[%clk 0:02:38]} 7. e3 {[%clk 0:02:39]}  Be7 {[%clk 0:02:36]} 8. Nbd2 {[%clk 0:02:31]}  O-O {[%clk 0:02:36]} 9. Bd3 {[%clk 0:02:28]}  c4 {[%clk 0:02:36]} 10. Qxb6 {[%clk 0:02:27]}  axb6 {[%clk 0:02:34]} 11. Bc2 {[%clk 0:02:26]}  b5 {[%clk 0:02:35]} 12. O-O {[%clk 0:02:26]}  b4 {[%clk 0:02:35]} 13. g4 {[%clk 0:02:09]}  b5 {[%clk 0:02:24]} 14. Rfb1 {[%clk 0:01:38]}  Bb7 {[%clk 0:02:22]} 15. g5 {[%clk 0:01:37]}  Ne8 {[%clk 0:02:19]} 16. h4 {[%clk 0:01:33]}  Nd6 {[%clk 0:02:14]} 17. Kg2 {[%clk 0:01:31]}  bxc3 {[%clk 0:02:13]} 18. bxc3 {[%clk 0:01:29]}  Bc6 {[%clk 0:01:51]} 19. Ne5 {[%clk 0:01:29]}  Nxe5 {[%clk 0:01:52]} 20. dxe5 {[%clk 0:01:00]}  Ne4 {[%clk 0:01:51]} 21. Bxe4 {[%clk 0:01:01]}  dxe4 {[%clk 0:01:15]} 22. a4 {[%clk 0:00:33]}  Rxa4 {[%clk 0:01:16]} 23. Rxa4 {[%clk 0:00:33]}  bxa4 {[%clk 0:00:58]} 24. Nxc4 {[%clk 0:00:32]}  a3 {[%clk 0:00:59]} 25. Ra1 {[%clk 0:00:33]}  Ra8 {[%clk 0:00:58]} 26. Nd6 {[%clk 0:00:27]}  Bd8 {[%clk 0:00:56]} 27. h5 {[%clk 0:00:27]}  Bb6 {[%clk 0:00:48]} 28. Kf1 {[%clk 0:00:20]}  Bc5 {[%clk 0:00:46]} 29. h6 {[%clk 0:00:14]}  Rb8 {[%clk 0:00:45]} 30. Kg2 {[%clk 0:00:11]}  Rb2 {[%clk 0:00:39]} 31. Nc4 {[%clk 0:00:09]}  Rb3 {[%clk 0:00:39]} 32. Rd1 {[%clk 0:00:08]}  Bd5 {[%clk 0:00:40]} 33. Nd6 {[%clk 0:00:08]}  a2 {[%clk 0:00:39]} 34. c4 {[%clk 0:00:04]}  Rb1 {[%clk 0:00:37]} 35. cxd5 {[%clk 0:00:02]}  Rxd1 {[%clk 0:00:37]} 36. dxe6 {[%clk 0:00:02]}  fxe6 {[%clk 0:00:37]} 0-1


[Site "https://www.chess.com"]

[Event "Titled Tuesday Blitz January 10 Late 2023"]
[White "Sarana, Alexey"]
[Black "Svane, Rasmus"]
[WhiteFideId "24133795"]
[BlackFideId "4657101"]
[WhiteElo "2685"]
[BlackElo "2623"]
[Result "1/2-1/2"]
[Round "10"]
[TimeControl "180+2"]
[Date "2023.01.10"]
[WhiteClock "0:00:12"]
[BlackClock "0:00:04"]

1. d4 {[%clk 0:00:00]}  Nf6 {[%clk 0:00:00]} 2. c4 {[%clk 0:03:00]}  e6 {[%clk 0:02:57]} 3. Nc3 {[%clk 0:03:01]}  Bb4 {[%clk 0:02:58]} 4. e3 {[%clk 0:03:02]}  O-O {[%clk 0:02:57]} 5. Bd3 {[%clk 0:03:02]}  d5 {[%clk 0:02:57]} 6. a3 {[%clk 0:03:03]}  Bxc3+ {[%clk 0:02:52]} 7. bxc3 {[%clk 0:03:03]}  dxc4 {[%clk 0:02:52]} 8. Bxc4 {[%clk 0:03:04]}  c5 {[%clk 0:02:53]} 9. Ne2 {[%clk 0:03:05]}  Qc7 {[%clk 0:02:53]} 10. Bd3 {[%clk 0:03:05]}  Nc6 {[%clk 0:02:53]} 11. f4 {[%clk 0:03:06]}  b6 {[%clk 0:02:48]} 12. O-O {[%clk 0:03:06]}  Bb7 {[%clk 0:02:43]} 13. e4 {[%clk 0:03:05]}  Rfd8 {[%clk 0:02:33]} 14. Bb2 {[%clk 0:03:05]}  Na5 {[%clk 0:02:11]} 15. Ng3 {[%clk 0:03:04]}  Rac8 {[%clk 0:02:06]} 16. Qe2 {[%clk 0:03:00]}  b5 {[%clk 0:01:48]} 17. e5 {[%clk 0:02:59]}  Nd5 {[%clk 0:01:38]} 18. f5 {[%clk 0:02:21]}  cxd4 {[%clk 0:01:26]} 19. cxd4 {[%clk 0:02:21]}  Nc4 {[%clk 0:01:25]} 20. fxe6 {[%clk 0:02:20]}  fxe6 {[%clk 0:01:25]} 21. Qh5 {[%clk 0:01:44]}  g6 {[%clk 0:01:15]} 22. Bxg6 {[%clk 0:01:43]}  hxg6 {[%clk 0:00:53]} 23. Qxg6+ {[%clk 0:01:43]}  Qg7 {[%clk 0:00:54]} 24. Qxe6+ {[%clk 0:01:43]}  Kh8 {[%clk 0:00:55]} 25. Rf7 {[%clk 0:01:44]}  Rc6 {[%clk 0:00:55]} 26. Qh3+ {[%clk 0:01:44]}  Qh6 {[%clk 0:00:40]} 27. Qxh6+ {[%clk 0:00:48]}  Rxh6 {[%clk 0:00:39]} 28. Rxb7 {[%clk 0:00:46]}  Nxb2 {[%clk 0:00:40]} 29. Nf5 {[%clk 0:00:44]}  Rb6 {[%clk 0:00:39]} 30. Rxa7 {[%clk 0:00:37]}  Nc4 {[%clk 0:00:22]} 31. Rf1 {[%clk 0:00:37]}  Rf8 {[%clk 0:00:20]} 32. Rf3 {[%clk 0:00:32]}  Rg6 {[%clk 0:00:17]} 33. Rh3+ {[%clk 0:00:27]}  Kg8 {[%clk 0:00:08]} 34. Nh6+ {[%clk 0:00:19]}  Rxh6 {[%clk 0:00:08]} 35. Rxh6 {[%clk 0:00:20]}  Nce3 {[%clk 0:00:04]} 36. h3 {[%clk 0:00:20]}  Rf1+ {[%clk 0:00:04]} 37. Kh2 {[%clk 0:00:14]}  Rd1 {[%clk 0:00:04]} 38. Rd6 {[%clk 0:00:14]}  Nf1+ {[%clk 0:00:02]} 39. Kg1 {[%clk 0:00:13]}  Ng3+ {[%clk 0:00:03]} 40. Kf2 {[%clk 0:00:13]}  Ne4+ {[%clk 0:00:03]} 41. Ke2 {[%clk 0:00:13]}  Ndc3+ {[%clk 0:00:04]} 42. Ke3 {[%clk 0:00:14]}  Nxd6 {[%clk 0:00:03]} 43. exd6 {[%clk 0:00:14]}  Nd5+ {[%clk 0:00:03]} 44. Ke4 {[%clk 0:00:15]}  Nc3+ {[%clk 0:00:04]} 45. Ke5 {[%clk 0:00:16]}  Re1+ {[%clk 0:00:03]} 46. Kf5 {[%clk 0:00:16]}  Rf1+ {[%clk 0:00:04]} 47. Ke6 {[%clk 0:00:16]}  Re1+ {[%clk 0:00:03]} 48. Kd7 {[%clk 0:00:13]}  Rd1 {[%clk 0:00:03]} 49. Kc8 {[%clk 0:00:13]}  Ne4 {[%clk 0:00:03]} 50. d7 {[%clk 0:00:11]}  Nd6+ {[%clk 0:00:02]} 51. Kb8 {[%clk 0:00:11]}  Nf7 {[%clk 0:00:02]} 52. Ra6 {[%clk 0:00:11]}  Rxd4 {[%clk 0:00:02]} 53. Kc7 {[%clk 0:00:04]}  Rc4+ {[%clk 0:00:02]} 54. Rc6 {[%clk 0:00:05]}  Rd4 {[%clk 0:00:02]} 55. g4 {[%clk 0:00:05]}  Kf8 {[%clk 0:00:02]} 56. Re6 {[%clk 0:00:04]}  Rc4+ {[%clk 0:00:02]} 57. Kb6 {[%clk 0:00:03]}  Rd4 {[%clk 0:00:02]} 58. Kxb5 {[%clk 0:00:04]}  Rxd7 {[%clk 0:00:03]} 59. Re3 {[%clk 0:00:02]}  Rb7+ {[%clk 0:00:03]} 60. Kc6 {[%clk 0:00:03]}  Ra7 {[%clk 0:00:03]} 61. Kb6 {[%clk 0:00:03]}  Ra8 {[%clk 0:00:04]} 62. Kb7 {[%clk 0:00:04]}  Ra4 {[%clk 0:00:04]} 63. Kb6 {[%clk 0:00:04]}  Nd6 {[%clk 0:00:04]} 64. Rf3+ {[%clk 0:00:04]}  Ke7 {[%clk 0:00:04]} 65. Kc5 {[%clk 0:00:03]}  Ra5+ {[%clk 0:00:04]} 66. Kb4 {[%clk 0:00:04]}  Rb5+ {[%clk 0:00:04]} 67. Kc3 {[%clk 0:00:04]}  Ke6 {[%clk 0:00:05]} 68. a4 {[%clk 0:00:04]}  Rc5+ {[%clk 0:00:05]} 69. Kb4 {[%clk 0:00:04]}  Rc4+ {[%clk 0:00:05]} 70. Kb3 {[%clk 0:00:04]}  Re4 {[%clk 0:00:06]} 71. Rc3 {[%clk 0:00:05]}  Kd5 {[%clk 0:00:06]} 72. a5 {[%clk 0:00:05]}  Nb7 {[%clk 0:00:05]} 73. a6 {[%clk 0:00:05]}  Nc5+ {[%clk 0:00:03]} 74. Ka2 {[%clk 0:00:04]}  Nxa6 {[%clk 0:00:04]} 75. g5 {[%clk 0:00:03]}  Nc5 {[%clk 0:00:04]} 76. Rg3 {[%clk 0:00:03]}  Ne6 {[%clk 0:00:04]} 77. g6 {[%clk 0:00:03]}  Ng7 {[%clk 0:00:03]} 78. Ra3 {[%clk 0:00:04]}  Ke6 {[%clk 0:00:03]} 79. Ra6+ {[%clk 0:00:02]}  Kf5 {[%clk 0:00:03]} 80. Kb3 {[%clk 0:00:02]}  Rh4 {[%clk 0:00:04]} 81. Ra5+ {[%clk 0:00:02]}  Kxg6 {[%clk 0:00:04]} 82. Ra6+ {[%clk 0:00:02]}  Kf7 {[%clk 0:00:04]} 83. Ra7+ {[%clk 0:00:02]}  Kf6 {[%clk 0:00:03]} 84. Ra6+ {[%clk 0:00:03]}  Ne6 {[%clk 0:00:04]} 85. Ra4 {[%clk 0:00:03]}  Rxh3+ {[%clk 0:00:05]} 86. Kb2 {[%clk 0:00:04]}  Ke5 {[%clk 0:00:05]} 87. Ra5+ {[%clk 0:00:04]}  Kd4 {[%clk 0:00:04]} 88. Ra4+ {[%clk 0:00:04]}  Kd5 {[%clk 0:00:04]} 89. Ra8 {[%clk 0:00:04]}  Kc4 {[%clk 0:00:04]} 90. Rc8+ {[%clk 0:00:05]}  Nc5 {[%clk 0:00:04]} 91. Kc2 {[%clk 0:00:06]}  Rh2+ {[%clk 0:00:05]} 92. Kd1 {[%clk 0:00:06]}  Kd3 {[%clk 0:00:05]} 93. Rd8+ {[%clk 0:00:07]}  Ke3 {[%clk 0:00:04]} 94. Re8+ {[%clk 0:00:06]}  Ne4 {[%clk 0:00:04]} 95. Kc1 {[%clk 0:00:07]}  Kd3 {[%clk 0:00:05]} 96. Rd8+ {[%clk 0:00:07]}  Kc4 {[%clk 0:00:04]} 97. Rc8+ {[%clk 0:00:07]}  Nc5 {[%clk 0:00:04]} 98. Kd1 {[%clk 0:00:07]}  Ra2 {[%clk 0:00:05]} 99. Ke1 {[%clk 0:00:07]}  Kd4 {[%clk 0:00:05]} 100. Rd8+ {[%clk 0:00:07]}  Ke3 {[%clk 0:00:05]} 101. Re8+ {[%clk 0:00:08]}  Ne4 {[%clk 0:00:05]} 102. Kd1 {[%clk 0:00:08]}  Ra6 {[%clk 0:00:05]} 103. Kc1 {[%clk 0:00:09]}  Kd3 {[%clk 0:00:03]} 104. Rd8+ {[%clk 0:00:08]}  Kc4 {[%clk 0:00:03]} 105. Rc8+ {[%clk 0:00:07]}  Kb4 {[%clk 0:00:03]} 106. Kd1 {[%clk 0:00:08]}  Nc3+ {[%clk 0:00:02]} 107. Kd2 {[%clk 0:00:07]}  Rd6+ {[%clk 0:00:02]} 108. Ke3 {[%clk 0:00:07]}  Kb3 {[%clk 0:00:02]} 109. Ra8 {[%clk 0:00:08]}  Kc2 {[%clk 0:00:02]} 110. Rc8 {[%clk 0:00:07]}  Re6+ {[%clk 0:00:03]} 111. Kd4 {[%clk 0:00:07]}  Re4+ {[%clk 0:00:03]} 112. Kc5 {[%clk 0:00:07]}  Kb3 {[%clk 0:00:04]} 113. Rb8+ {[%clk 0:00:07]}  Kc2 {[%clk 0:00:04]} 114. Rh8 {[%clk 0:00:06]}  Rg4 {[%clk 0:00:05]} 115. Rh2+ {[%clk 0:00:07]}  Kb3 {[%clk 0:00:05]} 116. Rh3 {[%clk 0:00:07]}  Rc4+ {[%clk 0:00:05]} 117. Kd6 {[%clk 0:00:08]}  Kb4 {[%clk 0:00:05]} 118. Rh8 {[%clk 0:00:09]}  Nb5+ {[%clk 0:00:06]} 119. Ke5 {[%clk 0:00:08]}  Rg4 {[%clk 0:00:07]} 120. Rh1 {[%clk 0:00:08]}  Rg5+ {[%clk 0:00:07]} 121. Kf4 {[%clk 0:00:08]}  Rg2 {[%clk 0:00:07]} 122. Rb1+ {[%clk 0:00:08]}  Kc4 {[%clk 0:00:07]} 123. Rc1+ {[%clk 0:00:09]}  Kd5 {[%clk 0:00:08]} 124. Rd1+ {[%clk 0:00:09]}  Nd4 {[%clk 0:00:08]} 125. Ra1 {[%clk 0:00:09]}  Rf2+ {[%clk 0:00:09]} 126. Kg5 {[%clk 0:00:10]}  Ke4 {[%clk 0:00:09]} 127. Ra4 {[%clk 0:00:11]}  Rf8 {[%clk 0:00:08]} 128. Kg6 {[%clk 0:00:11]}  Ke5 {[%clk 0:00:07]} 129. Kg7 {[%clk 0:00:11]}  Ne6+ {[%clk 0:00:07]} 130. Kg6 {[%clk 0:00:12]}  Rg8+ {[%clk 0:00:07]} 131. Kh5 {[%clk 0:00:12]}  Rg1 {[%clk 0:00:08]} 132. Kh4 {[%clk 0:00:11]}  Nf4 {[%clk 0:00:05]} 133. Ra5+ {[%clk 0:00:11]}  Ke4 {[%clk 0:00:04]} 134. Ra4+ {[%clk 0:00:12]}  Kf3 {[%clk 0:00:04]} 135. Ra3+ {[%clk 0:00:12]}  Ke4 {[%clk 0:00:04]} 1/2-1/2


[Site "https://www.chess.com"]